fUST/lending_fUST_20250805
["ID","MTS","AMOUNT","RATE_DAILY","PERIOD"]
[377295166,1754323853492,-460.0,0.00033972,2]
[377295168,1754323853502,-460.0,0.00033972,2]
[377295170,1754323853512,-460.0,0.00033972,2]
[377295172,1754323853522,-460.0,0.00033972,2]
[377295174,1754323853532,-460.0,0.00033972,2]
[377295176,1754323853541,-460.0,0.00033972,2]
[377295178,1754323853551,-460.0,0.00033972,2]
[377295180,1754323853560,-460.0,0.00033972,2]
[377295182,1754323853570,-460.0,0.00033972,2]
[377295184,1754323853579,-460.0,0.00033972,2]
[377295186,1754323853589,-460.0,0.00033972,2]
[377295188,1754323853598,-460.0,0.00033972,2]
[377295190,1754323853608,-460.0,0.00033972,2]
[377295192,1754323853617,-460.0,0.00033972,2]
[377295194,1754323853627,-460.0,0.00033972,2]
[377295196,1754323853636,-460.0,0.00033972,2]
[377295198,1754323853646,-1050.99,0.00033972,2]
[377295200,1754323853655,-460.0,0.00033972,2]
[377295202,1754323853665,-460.0,0.00033972,2]
[377295204,1754323853674,-820.27,0.00033972,2]
[377295206,1754323853684,-460.0,0.00033972,2]
[377295208,1754323853694,-460.0,0.00033972,2]
[377295210,1754323853703,-460.0,0.00033972,2]
[377295212,1754323853713,-460.0,0.00033972,2]
[377295214,1754323853722,-309.90527745,0.00033972,2]
[377295216,1754323853732,-460.0,0.00033972,2]
[377295218,1754323853742,-431.09,0.00033972,2]
[377295220,1754323853751,-460.0,0.00033972,2]
[377295222,1754323853763,-323.87307705,0.00033972,2]
[377295224,1754323853772,-1143.66,0.00033972,2]
[377295226,1754323853782,-460.0,0.00033972,2]
[377295227,1754323853793,-460.0,0.00033972,2]
[377295229,1754323853802,-460.0,0.00033972,2]
[377295231,1754323853812,-460.0,0.00033972,2]
[377295234,1754323853822,-460.0,0.00033972,2]
[377295236,1754323853831,-460.0,0.00033972,2]
[377295237,1754323853840,-460.0,0.00033972,2]
[377295239,1754323853850,-460.0,0.00033972,2]
[377295241,1754323853860,-460.0,0.00033972,2]
[377295243,1754323853869,-460.0,0.00033972,2]
[377295245,1754323853879,-918.49,0.00033972,2]
[377295247,1754323853889,-460.0,0.00033972,2]
[377295249,1754323853899,-460.0,0.00033972,2]
[377295251,1754323853909,-460.0,0.00033972,2]
[377295253,1754323853919,-460.0,0.00033972,2]
[377295255,1754323853928,-460.0,0.00033972,2]
[377295257,1754323853938,-738.75,0.00033972,2]
[377295259,1754323853947,-460.0,0.00033972,2]
[377295261,1754323853957,-460.0,0.00033972,2]
[377295263,1754323853967,-460.0,0.00033972,2]
[377295265,1754323853977,-460.0,0.00033972,2]
[377295267,1754323853987,-460.0,0.00033972,2]
[377295269,1754323853996,-460.0,0.00033972,2]
[377295271,1754323854006,-460.0,0.00033972,2]
[377295273,1754323854016,-2512.82,0.00033972,2]
[377295275,1754323854026,-460.0,0.00033972,2]
[377295277,1754323854036,-268.68194583,0.00033972,2]
[377295279,1754323854046,-460.0,0.00033972,2]
[377295281,1754323854056,-5056.98,0.00033972,2]
[377295283,1754323854066,-460.0,0.00033972,2]
[377295285,1754323854075,-460.0,0.00033972,2]
[377295287,1754323854085,-404.23422925,0.00033972,2]
[377295289,1754323854094,-283.25653882,0.00033972,2]
[377295291,1754323854103,-469.37,0.00033972,2]
[377295292,1754323854113,-1009.46,0.00033972,2]
[377295295,1754323854123,-460.0,0.00033972,2]
[377295296,1754323854132,-460.0,0.00033972,2]
[377295298,1754323854142,-1467.56,0.00033972,2]
[377295300,1754323854152,-460.0,0.00033972,2]
[377295302,1754323854162,-460.0,0.00033972,2]
[377295304,1754323854171,-460.0,0.00033972,2]
[377295306,1754323854181,-460.0,0.00033972,2]
[377295308,1754323854191,-460.0,0.00033972,2]
[377295310,1754323854201,-460.0,0.00033972,2]
[377295312,1754323854210,-460.0,0.00033972,2]
[377295314,1754323854220,-460.0,0.00033972,2]
[377295316,1754323854231,-460.0,0.00033972,2]
[377295319,1754323854246,-460.0,0.00033972,2]
[377295321,1754323854263,-460.0,0.00033972,2]
[377295324,1754323854278,-460.0,0.00033972,2]
[377295326,1754323854291,-460.0,0.00033972,2]
[377295328,1754323854306,-460.0,0.00033972,2]
[377295331,1754323854330,-577.95,0.00033972,2]
[377295333,1754323854345,-5649.48,0.00033972,2]
[377295336,1754323854359,-460.0,0.00033972,2]
[377295338,1754323854375,-460.0,0.00033972,2]
[377295341,1754323854391,-460.0,0.00033972,2]
[377295343,1754323854405,-460.0,0.00033972,2]
[377295345,1754323854418,-460.0,0.00033972,2]
[377295348,1754323854432,-460.0,0.00033972,2]
[377295350,1754323854447,-600.32,0.00033972,2]
[377295353,1754323854460,-460.0,0.00033972,2]
[377295355,1754323854471,-460.0,0.00033972,2]
[377295357,1754323854484,-460.0,0.00033972,2]
[377295359,1754323854496,-460.0,0.00033972,2]
[377295362,1754323854510,-460.0,0.00033972,2]
[377295364,1754323854525,-2207.42,0.00033972,2]
[377295366,1754323854539,-460.0,0.00033972,2]
[377295369,1754323854555,-460.0,0.00033972,2]
[377295372,1754323854570,-460.0,0.00033972,2]
[377295374,1754323854581,-460.0,0.00033972,2]
[377295376,1754323854592,-460.0,0.00033972,2]
[377295378,1754323854605,-460.0,0.00033972,2]
[377295381,1754323854621,-1745.33,0.00033972,2]
[377295383,1754323854635,-460.0,0.00033972,2]
[377295385,1754323854645,-460.0,0.00033972,2]
[377295387,1754323854658,-460.0,0.00033972,2]
[377295388,1754323854677,-2784.48,0.00033972,2]
[377295389,1754323854689,-460.0,0.00033972,2]
[377295390,1754323854701,-460.0,0.00033972,2]
[377295391,1754323854713,-460.0,0.00033972,2]
[377295392,1754323854726,-460.0,0.00033972,2]
[377295393,1754323854737,-460.0,0.00033972,2]
[377295394,1754323854749,-460.0,0.00033972,2]
[377295396,1754323854762,-1672.85643377,0.00034064,2]
[377295398,1754323854776,-560.0,0.00034158,2]
[377295400,1754323854788,-321.48,0.00034246,2]
[377295402,1754323854799,-574.27607608,0.00034246,2]
[377295404,1754323854811,-460.0,0.00034246,2]
[377295407,1754323854823,-460.0,0.00034246,2]
[377295409,1754323854835,-460.0,0.00034246,2]
[377295411,1754323854847,-460.0,0.00034246,2]
[377295413,1754323854860,-460.0,0.00034246,2]
[377295416,1754323854872,-1512.55,0.00034246,2]
[377295418,1754323854884,-591.5,0.00034246,2]
[377295420,1754323854896,-460.0,0.00034246,2]
[377295422,1754323854908,-460.0,0.00034246,2]
[377295425,1754323854920,-328.72024568,0.00034246,2]
[377295427,1754323854932,-409.74,0.00034246,2]
[377295429,1754323854943,-460.0,0.00034246,2]
[377295431,1754323854955,-460.0,0.00034246,2]
[377295433,1754323854967,-460.0,0.00034246,2]
[377295436,1754323854979,-470.1,0.00034246,2]
[377295438,1754323854991,-460.0,0.00034246,2]
[377295440,1754323855003,-460.0,0.00034246,2]
[377295442,1754323855015,-462.54,0.00034246,2]
[377295445,1754323855028,-460.0,0.00034246,2]
[377295447,1754323855040,-513.47,0.00034246,2]
[377295449,1754323855053,-460.0,0.00034246,2]
[377295452,1754323855065,-460.0,0.00034246,2]
[377295454,1754323855078,-460.0,0.00034246,2]
[377295456,1754323855089,-460.0,0.00034246,2]
[377295459,1754323855102,-460.0,0.00034246,2]
[377295461,1754323855114,-460.0,0.00034246,2]
[377295463,1754323855126,-460.0,0.00034246,2]
[377295465,1754323855138,-382.81607924,0.00034246,2]
[377295468,1754323855149,-460.0,0.00034246,2]
[377295470,1754323855162,-460.0,0.00034246,2]
[377295472,1754323855175,-460.0,0.00034246,2]
[377295474,1754323855187,-460.0,0.00034246,2]
[377295477,1754323855200,-460.0,0.00034246,2]
[377295479,1754323855211,-460.0,0.00034246,2]
[377295481,1754323855223,-1050.99,0.00034246,2]
[377295483,1754323855235,-269.03,0.00034246,2]
[377295486,1754323855247,-460.0,0.00034246,2]
[377295488,1754323855260,-820.27,0.00034246,2]
[377295490,1754323855275,-460.0,0.00034246,2]
[377295492,1754323855285,-460.0,0.00034246,2]
[377295494,1754323855295,-460.0,0.00034246,2]
[377295496,1754323855306,-8959.07,0.00034246,120]
[377295498,1754323855322,-460.0,0.00034246,2]
[377295500,1754323855332,-460.0,0.00034246,2]
[377295502,1754323855342,-460.0,0.00034246,2]
[377295504,1754323855351,-1143.66,0.00034246,2]
[377295506,1754323855362,-460.0,0.00034246,2]
[377295509,1754323855372,-460.0,0.00034246,2]
[377295510,1754323855381,-460.0,0.00034246,2]
[377295513,1754323855392,-460.0,0.00034246,2]
[377295530,1754323855512,-460.0,0.00034246,2]
[377295534,1754323855575,-476.8,0.00034246,2]
[377295536,1754323855587,-460.0,0.00034246,2]
[377295538,1754323855597,-460.0,0.00034246,2]
[377295540,1754323855606,-460.0,0.00034246,2]
[377295542,1754323855615,-460.0,0.00034246,2]
[377295544,1754323855624,-918.49,0.00034246,2]
[377295546,1754323855634,-460.0,0.00034246,2]
[377295548,1754323855643,-460.0,0.00034246,2]
[377295550,1754323855652,-460.0,0.00034246,2]
[377295552,1754323855662,-460.0,0.00034246,2]
[377295554,1754323855671,-460.0,0.00034246,2]
[377295556,1754323855681,-738.75,0.00034246,2]
[377295558,1754323855691,-460.0,0.00034246,2]
[377295560,1754323855700,-460.0,0.00034246,2]
[377295562,1754323855709,-460.0,0.00034246,2]
[377295564,1754323855718,-460.0,0.00034246,2]
[377295566,1754323855728,-460.0,0.00034246,2]
[377295568,1754323855738,-2512.82,0.00034246,2]
[377295570,1754323855747,-460.0,0.00034246,2]
[377295572,1754323855757,-460.0,0.00034246,2]
[377295574,1754323855768,-460.0,0.00034246,2]
[377295576,1754323855778,-5056.98,0.00034246,2]
[377295578,1754323855788,-460.0,0.00034246,2]
[377295580,1754323855797,-460.0,0.00034246,2]
[377295582,1754323855807,-469.37,0.00034246,2]
[377295584,1754323855816,-1009.46,0.00034246,2]
[377295586,1754323855826,-460.0,0.00034246,2]
[377295588,1754323855836,-460.0,0.00034246,2]
[377295590,1754323855845,-1467.56,0.00034246,2]
[377295592,1754323855855,-460.0,0.00034246,2]
[377295594,1754323855865,-460.0,0.00034246,2]
[377295596,1754323855874,-460.0,0.00034246,2]
[377295598,1754323855884,-460.0,0.00034246,2]
[377295600,1754323855894,-460.0,0.00034246,2]
[377295602,1754323855904,-460.0,0.00034246,2]
[377295604,1754323855914,-460.0,0.00034246,2]
[377295606,1754323855924,-460.0,0.00034246,2]
[377295608,1754323855934,-460.0,0.00034246,2]
[377295610,1754323855943,-460.0,0.00034246,2]
[377295612,1754323855953,-460.0,0.00034246,2]
[377295614,1754323855963,-460.0,0.00034246,2]
[377295616,1754323855973,-460.0,0.00034246,2]
[377295618,1754323855983,-460.0,0.00034246,2]
[377295620,1754323855992,-577.95,0.00034246,2]
[377295622,1754323856002,-5649.48,0.00034246,2]
[377295624,1754323856011,-460.0,0.00034246,2]
[377295626,1754323856021,-460.0,0.00034246,2]
[377295628,1754323856031,-460.0,0.00034246,2]
[377295630,1754323856040,-460.0,0.00034246,2]
[377295632,1754323856050,-460.0,0.00034246,2]
[377295634,1754323856059,-460.0,0.00034246,2]
[377295636,1754323856070,-460.0,0.00034246,2]
[377295638,1754323856079,-2207.42,0.00034246,2]
[377295640,1754323856088,-460.0,0.00034246,2]
[377295642,1754323856098,-473.16,0.00034246,2]
[377295644,1754323856108,-460.0,0.00034246,2]
[377295646,1754323856117,-460.0,0.00034246,2]
[377295648,1754323856127,-460.0,0.00034246,2]
[377295650,1754323856136,-460.0,0.00034246,2]
[377295652,1754323856146,-1745.33,0.00034246,2]
[377295654,1754323856155,-460.0,0.00034246,2]
[377295656,1754323856165,-460.0,0.00034246,2]
[377295658,1754323856175,-460.0,0.00034246,2]
[377295660,1754323856184,-2784.48,0.00034246,2]
[377295662,1754323856195,-482.26,0.00034246,2]
[377295664,1754323856204,-460.0,0.00034246,2]
[377295666,1754323856214,-460.0,0.00034246,2]
[377295668,1754323856223,-460.0,0.00034246,2]
[377295670,1754323856234,-460.0,0.00034246,2]
[377295672,1754323856243,-400.0,0.00034268,5]
[377295674,1754323856253,-4772.28,0.000344,14]
[377295676,1754323856264,-200.0,0.000345,120]
[377295678,1754323856273,-460.0,0.0003452,2]
[377295680,1754323856283,-487.52,0.0003452,2]
[377295682,1754323856293,-460.0,0.0003452,2]
[377295684,1754323856303,-460.0,0.0003452,2]
[377295686,1754323856319,-1512.55,0.0003452,2]
[377295688,1754323856329,-460.0,0.0003452,2]
[377295690,1754323856338,-460.0,0.0003452,2]
[377295692,1754323856348,-471.58,0.0003452,2]
[377295694,1754323856360,-460.0,0.0003452,2]
[377295696,1754323856370,-460.0,0.0003452,2]
[377295698,1754323856380,-460.0,0.0003452,2]
[377295700,1754323856392,-460.0,0.0003452,2]
[377295702,1754323856402,-460.0,0.0003452,2]
[377295704,1754323856412,-460.0,0.0003452,2]
[377295706,1754323856422,-460.0,0.0003452,2]
[377295708,1754323856432,-460.0,0.0003452,2]
[377295710,1754323856441,-473.05,0.0003452,2]
[377295712,1754323856450,-180.75,0.0003452,2]
[377295714,1754323856460,-460.0,0.0003452,2]
[377295716,1754323856470,-460.0,0.0003452,2]
[377295718,1754323856480,-489.3,0.0003452,2]
[377295720,1754323856490,-1050.99,0.0003452,2]
[377295722,1754323856499,-820.27,0.0003452,2]
[377295724,1754323856509,-460.0,0.0003452,2]
[377295726,1754323856520,-460.0,0.0003452,2]
[377295728,1754323856529,-498.16,0.0003452,2]
[377295729,1754323856538,-460.0,0.0003452,2]
[377295732,1754323856549,-460.0,0.0003452,2]
[377295733,1754323856558,-1143.66,0.0003452,2]
[377295735,1754323856568,-460.0,0.0003452,2]
[377295737,1754323856577,-460.0,0.0003452,2]
[377295739,1754323856587,-204.06,0.0003452,2]
[377295741,1754323856597,-209.44,0.0003452,2]
[377295743,1754323856607,-460.0,0.0003452,2]
[377295745,1754323856617,-460.0,0.0003452,2]
[377295747,1754323856626,-460.0,0.0003452,2]
[377295749,1754323856636,-585.37,0.0003452,2]
[377295751,1754323856645,-918.49,0.0003452,2]
[377295753,1754323856655,-460.0,0.0003452,2]
[377295755,1754323856665,-494.0,0.0003452,2]
[377295757,1754323856674,-460.0,0.0003452,2]
[377295759,1754323856683,-344.53,0.0003452,2]
[377295761,1754323856693,-460.0,0.0003452,2]
[377295763,1754323856703,-738.75,0.0003452,2]
[377295765,1754323856713,-460.0,0.0003452,2]
[377295767,1754323856722,-460.0,0.0003452,2]
[377295769,1754323856732,-182.49,0.0003452,2]
[377295771,1754323856741,-460.0,0.0003452,2]
[377295773,1754323856751,-460.0,0.0003452,2]
[377295775,1754323856761,-2512.82,0.0003452,2]
[377295777,1754323856771,-460.0,0.0003452,2]
[377295779,1754323856781,-460.0,0.0003452,2]
[377295781,1754323856791,-5056.98,0.0003452,2]
[377295783,1754323856801,-460.0,0.0003452,2]
[377295785,1754323856811,-469.37,0.0003452,2]
[377295787,1754323856820,-1009.46,0.0003452,2]
[377295789,1754323856830,-460.0,0.0003452,2]
[377295791,1754323856839,-1467.56,0.0003452,2]
[377295793,1754323856850,-460.0,0.0003452,2]
[377295795,1754323856860,-460.0,0.0003452,2]
[377295797,1754323856869,-460.0,0.0003452,2]
[377295799,1754323856879,-526.32,0.0003452,2]
[377295801,1754323856889,-460.0,0.0003452,2]
[377295803,1754323856898,-460.0,0.0003452,2]
[377295805,1754323856907,-460.0,0.0003452,2]
[377295806,1754323856916,-460.0,0.0003452,2]
[377295808,1754323856926,-460.0,0.0003452,2]
[377295810,1754323856935,-460.0,0.0003452,2]
[377295812,1754323856945,-460.0,0.0003452,2]
[377295814,1754323856954,-460.0,0.0003452,2]
[377295816,1754323856964,-577.95,0.0003452,2]
[377295818,1754323856973,-5649.48,0.0003452,2]
[377295820,1754323856983,-460.0,0.0003452,2]
[377295822,1754323856992,-460.0,0.0003452,2]
[377295824,1754323857003,-460.0,0.0003452,2]
[377295826,1754323857013,-460.0,0.0003452,2]
[377295828,1754323857022,-2207.42,0.0003452,2]
[377295830,1754323857032,-460.0,0.0003452,2]
[377295832,1754323857043,-259.97,0.0003452,2]
[377295834,1754323857052,-460.0,0.0003452,2]
[377295836,1754323857062,-449.99,0.0003452,2]
[377295838,1754323857071,-1745.33,0.0003452,2]
[377295840,1754323857081,-460.0,0.0003452,2]
[377295842,1754323857091,-460.0,0.0003452,2]
[377295844,1754323857100,-460.0,0.0003452,2]
[377295846,1754323857109,-2784.48,0.0003452,2]
[377295848,1754323857119,-460.0,0.0003452,2]
[377295850,1754323857128,-460.9,0.0003452,2]
[377295852,1754323857138,-165.21,0.0003452,2]
[377295854,1754323857148,-3445.58267746,0.00034569,2]
[377295856,1754323857157,-2200.74,0.000346,7]
[377295858,1754323857167,-560.71,0.000346,7]
[377295860,1754323857176,-720.69916455,0.00034601,2]
[377295862,1754323857186,-153.0,0.00034681,30]
[377295864,1754323857196,-460.0,0.00034706,2]
[377295866,1754323857207,-460.0,0.00034794,2]
[377295868,1754323857216,-460.0,0.00034794,2]
[377295870,1754323857226,-1512.55,0.00034794,2]
[377295872,1754323857236,-460.0,0.00034794,2]
[377295874,1754323857246,-460.0,0.00034794,2]
[377295876,1754323857255,-460.0,0.00034794,2]
[377295878,1754323857267,-460.0,0.00034794,2]
[377295880,1754323857275,-460.0,0.00034794,2]
[377295881,1754323857285,-460.0,0.00034794,2]
[377295883,1754323857295,-359.42791692,0.00034794,2]
[377295885,1754323857306,-200.76,0.00034794,2]
[377295887,1754323857319,-460.0,0.00034794,2]
[377295889,1754323857329,-460.0,0.00034794,2]
[377295891,1754323857339,-1050.99,0.00034794,2]
[377295893,1754323857351,-820.27,0.00034794,2]
[377295895,1754323857360,-460.0,0.00034794,2]
[377295897,1754323857370,-460.0,0.00034794,2]
[377295899,1754323857381,-1143.66,0.00034794,2]
[377295901,1754323857395,-460.0,0.00034794,2]
[377295903,1754323857405,-460.0,0.00034794,2]
[377295905,1754323857416,-460.0,0.00034794,2]
[377295907,1754323857426,-460.0,0.00034794,2]
[377295909,1754323857436,-460.0,0.00034794,2]
[377295911,1754323857446,-918.49,0.00034794,2]
[377295913,1754323857456,-460.0,0.00034794,2]
[377295915,1754323857465,-738.75,0.00034794,2]
[377295917,1754323857475,-460.0,0.00034794,2]
[377295919,1754323857484,-489.03,0.00034794,2]
[377295921,1754323857493,-460.0,0.00034794,2]
[377295922,1754323857502,-460.0,0.00034794,2]
[377295924,1754323857513,-2512.82,0.00034794,2]
[377295926,1754323857523,-460.0,0.00034794,2]
[377295928,1754323857533,-5056.98,0.00034794,2]
[377295930,1754323857543,-460.0,0.00034794,2]
[377295932,1754323857552,-469.37,0.00034794,2]
[377295934,1754323857562,-1009.46,0.00034794,2]
[377295936,1754323857571,-460.0,0.00034794,2]
[377295938,1754323857581,-1467.56,0.00034794,2]
[377295940,1754323857591,-460.0,0.00034794,2]
[377295942,1754323857600,-460.0,0.00034794,2]
[377295944,1754323857610,-460.0,0.00034794,2]
[377295946,1754323857620,-460.0,0.00034794,2]
[377295947,1754323857629,-460.0,0.00034794,2]
[377295949,1754323857639,-460.0,0.00034794,2]
[377295951,1754323857648,-460.0,0.00034794,2]
[377295953,1754323857658,-460.0,0.00034794,2]
[377295955,1754323857668,-577.95,0.00034794,2]
[377295957,1754323857677,-5649.48,0.00034794,2]
[377295959,1754323857687,-460.0,0.00034794,2]
[377295961,1754323857697,-460.0,0.00034794,2]
[377295963,1754323857707,-383.35,0.00034794,2]
[377295965,1754323857716,-2207.42,0.00034794,2]
[377295967,1754323857726,-460.0,0.00034794,2]
[377295969,1754323857735,-460.0,0.00034794,2]
[377295971,1754323857744,-1745.33,0.00034794,2]
[377295973,1754323857753,-460.0,0.00034794,2]
[377295974,1754323857763,-463.75,0.00034794,2]
[377295976,1754323857773,-237.92,0.00034794,2]
[377295978,1754323857782,-2784.48,0.00034794,2]
[377295980,1754323857792,-460.0,0.00034794,2]
[377295982,1754323857802,-34051.27,0.000349,14]
[377295984,1754323857812,-15000.0,0.000349,14]
[377295986,1754323857822,-783.0,0.00034907,2]
[377295988,1754323857831,-203.411399,0.00035,2]
[377295990,1754323857843,-460.0,0.00035068,2]
[377295992,1754323857852,-1512.55,0.00035068,2]
[377295994,1754323857862,-460.0,0.00035068,2]
[377295996,1754323857872,-460.0,0.00035068,2]
[377295998,1754323857882,-460.0,0.00035068,2]
[377296000,1754323857891,-460.0,0.00035068,2]
[377296002,1754323857900,-460.0,0.00035068,2]
[377296003,1754323857910,-314.02149697,0.00035068,2]
[377296005,1754323857919,-460.0,0.00035068,2]
[377296007,1754323857930,-460.0,0.00035068,2]
[377296009,1754323857940,-1050.99,0.00035068,2]
[377296011,1754323857949,-820.27,0.00035068,2]
[377296013,1754323857960,-460.0,0.00035068,2]
[377296015,1754323857970,-460.0,0.00035068,2]
[377296017,1754323857980,-1143.66,0.00035068,2]
[377296019,1754323857990,-460.0,0.00035068,2]
[377296021,1754323858000,-460.0,0.00035068,2]
[377296023,1754323858010,-460.0,0.00035068,2]
[377296025,1754323858023,-460.0,0.00035068,2]
[377296027,1754323858034,-460.0,0.00035068,2]
[377296029,1754323858044,-918.49,0.00035068,2]
[377296031,1754323858053,-460.0,0.00035068,2]
[377296032,1754323858063,-738.75,0.00035068,2]
[377296034,1754323858074,-460.0,0.00035068,2]
[377296036,1754323858083,-601.69,0.00035068,2]
[377296038,1754323858094,-460.0,0.00035068,2]
[377296040,1754323858106,-2512.82,0.00035068,2]
[377296042,1754323858116,-460.0,0.00035068,2]
[377296044,1754323858125,-5056.98,0.00035068,2]
[377296046,1754323858135,-460.0,0.00035068,2]
[377296048,1754323858146,-469.37,0.00035068,2]
[377296050,1754323858155,-1009.46,0.00035068,2]
[377296052,1754323858166,-460.0,0.00035068,2]
[377296054,1754323858175,-1467.56,0.00035068,2]
[377296056,1754323858185,-460.0,0.00035068,2]
[377296058,1754323858195,-460.0,0.00035068,2]
[377296060,1754323858206,-460.0,0.00035068,2]
[377296062,1754323858216,-460.0,0.00035068,2]
[377296064,1754323858226,-460.0,0.00035068,2]
[377296066,1754323858239,-460.0,0.00035068,2]
[377296068,1754323858248,-460.0,0.00035068,2]
[377296070,1754323858258,-271.89,0.00035068,2]
[377296072,1754323858267,-577.95,0.00035068,2]
[377296074,1754323858277,-5649.48,0.00035068,2]
[377296076,1754323858286,-539.32,0.00035068,2]
[377296078,1754323858296,-460.0,0.00035068,2]
[377296080,1754323858305,-2207.42,0.00035068,2]
[377296082,1754323858319,-508.35,0.00035068,2]
[377296084,1754323858328,-460.0,0.00035068,2]
[377296085,1754323858338,-1745.33,0.00035068,2]
[377296087,1754323858347,-2784.48,0.00035068,2]
[377296089,1754323858358,-460.0,0.00035068,2]
[377296091,1754323858367,-460.0,0.00035068,2]
[377296093,1754323858377,-3135.0,0.00035202,3]
[377296095,1754323858389,-2084.19663182,0.00035244,2]
[377296097,1754323858399,-460.0,0.00035342,2]
[377296099,1754323858408,-1512.55,0.00035342,2]
[377296101,1754323858418,-460.0,0.00035342,2]
[377296103,1754323858428,-209.64,0.00035342,2]
[377296105,1754323858437,-460.0,0.00035342,2]
[377296107,1754323858447,-460.0,0.00035342,2]
[377296120,1754323858567,-603.44,0.00035342,2]
[377296122,1754323858577,-460.0,0.00035342,2]
[377296124,1754323858587,-460.0,0.00035342,2]
[377296126,1754323858597,-1050.99,0.00035342,2]
[377296128,1754323858606,-820.27,0.00035342,2]
[377296130,1754323858616,-460.0,0.00035342,2]
[377296132,1754323858625,-460.0,0.00035342,2]
[377296134,1754323858635,-1143.66,0.00035342,2]
[377296136,1754323858644,-460.0,0.00035342,2]
[377296138,1754323858653,-460.0,0.00035342,2]
[377296139,1754323858663,-460.0,0.00035342,2]
[377296141,1754323858672,-361.99737684,0.00035342,2]
[377296143,1754323858681,-417.38,0.00035342,2]
[377296145,1754323858693,-918.49,0.00035342,2]
[377296147,1754323858703,-594.76,0.00035342,2]
[377296149,1754323858712,-738.75,0.00035342,2]
[377296151,1754323858722,-460.0,0.00035342,2]
[377296153,1754323858731,-364.72,0.00035342,2]
[377296155,1754323858740,-2512.82,0.00035342,2]
[377296157,1754323858750,-460.0,0.00035342,2]
[377296159,1754323858759,-5056.98,0.00035342,2]
[377296161,1754323858770,-460.0,0.00035342,2]
[377296163,1754323858779,-469.37,0.00035342,2]
[377296165,1754323858788,-1009.46,0.00035342,2]
[377296167,1754323858797,-371.01,0.00035342,2]
[377296169,1754323858807,-1467.56,0.00035342,2]
[377296171,1754323858816,-460.0,0.00035342,2]
[377296173,1754323858826,-500.75,0.00035342,2]
[377296175,1754323858835,-460.0,0.00035342,2]
[377296176,1754323858845,-289.56,0.00035342,2]
[377296178,1754323858855,-460.0,0.00035342,2]
[377296180,1754323858865,-460.0,0.00035342,2]
[377296182,1754323858875,-460.0,0.00035342,2]
[377296184,1754323858885,-577.95,0.00035342,2]
[377296186,1754323858894,-5649.48,0.00035342,2]
[377296188,1754323858904,-460.0,0.00035342,2]
[377296190,1754323858914,-2207.42,0.00035342,2]
[377296192,1754323858923,-283.77,0.00035342,2]
[377296194,1754323858933,-1745.33,0.00035342,2]